Cogmind - Beta 16.1 @@@ ROGUE MODE // 2026.02.16 @ 14:47:01 Player: Zish Result: Destroyed by EO-7S5(R) with Subdweller Laser Performance ------------- Evolutions (0) 0 Regions Visited (2) 400 Robots Destroyed (25) 125 Value Destroyed (491) 491 Prototype IDs (4) 80 Alien Tech Used (0) 0 Bonus (0) 0 TOTAL SCORE: 1096 Bonus ------- None Cogmind --------- Core Integrity 0/250 Matter 298/300 Energy 125/125 System Corruption 0% Temperature Cool (6) Movement Core (450) Ox8 Location -10/Subcaves Parts ------- > --- POWER (1) -------- Light Ion Engine > --- PROPULSION (2) --- (None) > --- UTILITY (2) ------ Large Storage Unit Hacking Suite > --- WEAPON (2) ------- Small Laser Light Assault Rifle > --- INVENTORY (15) --- Ion Engine Light Ion Engine Subdweller Power Source Small Storage Unit Sensor Array Signal Interpreter Weapon Shielding Piercing Trap Peak State ------------ > --- POWER ------------ Ion Engine > --- PROPULSION ------- Light Treads Light Treads > --- UTILITY ---------- Large Storage Unit Hacking Suite > --- WEAPON ----------- Assault Rifle Assault Rifle > --- INVENTORY -------- Ion Engine Light Ion Engine Light Ion Engine Small Storage Unit Sensor Array Signal Interpreter Weapon Shielding Small Laser Light Assault Rifle Light Assault Rifle [Rating: 10] Favorites ----------- Power Ion Engine Engine Ion Engine Propulsion Light Treads Treads Light Treads Utility Large Storage Unit Device Sensor Array Storage Large Storage Unit Hackware Hacking Suite Weapon Assault Rifle Energy Gun Small Laser Ballistic Gun Assault Rifle Build | -11 -10 -10 ------- Run | Yrd Mat Sub Slots Evolved . | . . . Power . | . . . Propulsion . | . . . Utility . | . . . Weapon . | . . . Parts Attached 18 | 6 7 5 Power 3 | 1 1 1 Engine 3 | 1 1 1 Core . | . . . Reactor . | . . . Propulsion 4 | 2 . 2 Treads 4 | 2 . 2 Leg . | . . . Wheel . | . . . Hover . | . . . Flight . | . . . Utility 4 | 1 3 . Device 1 | . 1 . Storage 2 | 1 1 . Processor . | . . . Hackware 1 | . 1 . Protection . | . . . Artifact . | . . . Weapon 7 | 2 3 2 Energy Gun 2 | 1 . 1 Energy Cannon . | . . . Ballistic Gun 5 | 1 3 1 Ballistic Cannon . | . . . Launcher . | . . . Special Weapon . | . . . Impact Weapon . | . . . Slashing Weapon . | . . . Piercing Weapon . | . . . Special Melee Weapon . | . . . Unidentified Prototypes . | . . . Parts Lost 10 | . 1 9 Power 2 | . 1 1 Propulsion 4 | . . 4 Utility . | . . . Weapon 4 | . . 4 Highest Loss Streak 4 | . 1 4 To Critical Strikes 2 | . . 2 Average Backups 7 | 1 8 8 Power 2 | . 2 3 Propulsion . | . . . Utility 2 | . 2 4 Weapon 2 | . 2 1 Tool/Special . | . . . Unused Backups 5 | . . 5 Power 3 | . . 3 Propulsion . | . . . Utility 2 | . . 2 Weapon . | . . . Tool/Special . | . . . Average Slot Usage (%) 94 | . 97 89 Engine 13 | . 13 14 Treads 24 | . 27 18 Device 6 | . 9 . Storage 13 | . 13 14 Hackware 6 | . 2 14 Energy Gun 2 | . . 6 Ballistic Gun 24 | . 27 20 Peak Build Rating 10 | 6 10 10 Average Rating 7 | 5 7 8 On Entrance 5 | . 6 10 Avg Prop Armor Cover (%) . | . . . Naked Turns . | . . . Heaviest Build 30 | 14 30 29 Greatest Support 40 | 40 40 40 Greatest Overweight (x) 8 | . 1 8 Average Overweight (x) . | . . . Largest Inventory Capacity 15 | 8 15 15 Average Capacity 14 | 7 14 15 Most Carried 14 | 2 12 14 Average Carried 8 | 1 8 9 Final Capacity 15 | 8 15 15 Final Carried 12 | 2 12 8 Class Distribution -------------------- 100% | Mutant Dominant Class ---------------- Mutant | -10/Materials Mutant | -10/Subcaves Resources | -11 -10 -10 ----------- Run | Yrd Mat Sub Matter Collected 784 | 181 434 169 Remotely . | . . . Salvage Created 783 | . 571 212 Parts 57 | . 37 20 Haulers Intercepted 1 | . 1 . Recyclers Shooed . | . . . Parts Field Recycled . | . . . Retrieved Matter . | . . . Parts Self-Destructed 13 | . . 13 Prevented . | . . . Parts Restored . | . . . Kills | -11 -10 -10 ------- Run | Yrd Mat Sub Combat Hostiles Destroyed 17 | . 10 7 Guns 17 | . 10 7 Classes Destroyed 11 | . 9 2 Worker 1 | . 1 . Builder 1 | . 1 . Tunneler 1 | . 1 . Hauler 1 | . 1 . Recycler 1 | . 1 . Operator 1 | . 1 . Watcher 2 | . 2 . Swarmer 8 | . 4 4 Grunt 6 | . 6 . Sentry 1 | . . 1 Subdweller 2 | . . 2 Best Kill Streak 6 | . 6 5 Combat Bots Only 5 | . 4 5 Max Kills in Single Turn 2 | . 2 1 Gunslinging . | . . . Exploded . | . . . Melee . | . . . Uniques/NPCs Destroyed . | . . . Combat | -11 -10 -10 -------- Run | Yrd Mat Sub Hostile Shots Fired 137 | . 53 84 Missed 32 | . 14 18 Hits 105 | . 39 66 Projectile 105 | . 39 66 Critical Strikes 4 | . . 4 Damage Taken 1518 | . 406 1112 Core 255 | . 115 140 Absorbed by Shields . | . . . Regen/Repaired (Parts) 39 | . 39 . Core Remaining (%) 100 | 100 . . Volleys Fired 91 | . 43 48 Largest 2 | . 2 2 Hottest 70 | . 70 60 Shots Fired 174 | . 86 88 Gun 174 | . 86 88 Cannon . | . . . Launcher . | . . . Special . | . . . Kinetic 158 | . 80 78 Thermal 16 | . 6 10 Explosive . | . . . Electromagnetic . | . . . Robot Hit Streak 36 | . 10 36 Robot Miss Streak 3 | . 3 2 Penetration Max . | . . . Secondary Targets . | . . . Shots Hit Robots 127 | . 49 78 Core Hits 42 | . 26 16 Critical Kills . | . . . Critical Parts Destroyed 2 | . 2 . Critical Strikes 2 | . 2 . Destroy 2 | . 2 . Melee Attacks . | . . . Impact . | . . . Slashing . | . . . Piercing . | . . . Sneak Attacks . | . . . Combat Hostiles . | . . . Follow-up Attacks . | . . . Damage Inflicted 1019 | . 639 380 Guns 1019 | . 639 380 Cannons . | . . . Explosions . | . . . Melee . | . . . Ramming . | . . . Kinetic 880 | . 589 291 Thermal 139 | . 50 89 Explosive . | . . . Electromagnetic . | . . . Impact . | . . . Slashing . | . . . Piercing . | . . . Highest Corruption . | . . . Average Corruption . | . . . Corruption Purged . | . . . Corruption Blocked . | . . . Overload Shots . | . . . Overflow Damage . | . . . Projectiles . | . . . Explosions . | . . . Melee . | . . . Knockbacks . | . . . Impact . | . . . Kinetic . | . . . Secondary . | . . . Self-Inflicted Damage . | . . . Shots . | . . . Rammed . | . . . Targets Rammed . | . . . Kicked . | . . . Crushed . | . . . Highest Temperature 96 | . 96 2 Average Temperature 46 | . 52 2 Received Heat Transfer 273 | . 150 123 Siege Activations . | . . . Martial Activations . | . . . Shielding Activations . | . . . Robots Disrupted . | . . . Combat Hostiles . | . . . Robots Corrupted . | . . . Combat Hostiles . | . . . Parts Fried . | . . . Impact Corruptions . | . . . Robots Melted . | . . . Combat Hostiles . | . . . Parts Melted . | . . . Heat Transferred 348 | . 148 200 Parts Sabotaged . | . . . Parts Stolen . | . . . Parts Stripped . | . . . Power Chain Reactions . | . . . Alert | -11 -10 -10 ------- Run | Yrd Mat Sub Maximum Alert Level . | . . . Low Security (%) 100 | 100 100 . Level 1 . | . . . Level 2 . | . . . Level 3 . | . . . Level 4 . | . . . Level 5 . | . . . High Security . | . . . Max Security . | . . . Peak Influence 95 | . 95 . Initial . | . . . Average 24 | . 28 . Influence Increases 472 | . 312 160 Destroy 0b10 Robot/C 300 | . 200 100 Destroy 0b10 Robot/NC 40 | . 40 . Destroy Leader 46 | . 46 . Successful Hack 26 | . 26 . Lose Combat Pursuer 60 | . . 60 Influence Decreases 470 | . 273 197 Entered New Map 19 | . . 19 Time Decay 411 | . 263 148 Lost Part 40 | . 10 30 Squads Dispatched 2 | . 2 . Investigation 1 | . 1 . Extermination . | . . . Reinforcement 1 | . 1 . Assault . | . . . Garrison . | . . . Intercept . | . . . Searches Triggered . | . . . Construction Impeded . | . . . Haulers Reinforced . | . . . Active Scanning Responses . | . . . Cargo Convoy Interrupts . | . . . Stealth | -11 -10 -10 --------- Run | Yrd Mat Sub Distress Signals 4 | . 4 . Communications Jammed . | . . . Distress Signals . | . . . Times Spotted 26 | . 16 10 Peak Tracking Total 5 | . 5 3 Tactical Retreats 3 | . . 3 Traps | -11 -10 -10 ------- Run | Yrd Mat Sub Traps Triggered 3 | . 3 . Indirectly . | . . . Trap Hack Attempts . | . . . Triggered . | . . . Disarmed 6 | . 6 . Reprogrammed . | . . . Reused . | . . . Traps Extracted . | . . . Installed . | . . . Triggered . | . . . Most Traps Carried 1 | . . 1 Machines | -11 -10 -10 ---------- Run | Yrd Mat Sub Machines Disabled . | . . . Max in Single Turn . | . . . Machines Repaired . | . . . Machines Dismantled . | . . . Machines Sabotaged . | . . . Overloaded Fab Kills . | . . . Hacking | -11 -10 -10 --------- Run | Yrd Mat Sub Machines Accessed 6 | . 6 . Terminals 3 | . 3 . Fabricators . | . . . Repair Stations 1 | . 1 . Recycling Units 2 | . 2 . Scanalyzers . | . . . Garrison Access . | . . . Total Hacks 20 | . 20 . Successful 10 | . 10 . Failed 10 | . 10 . Catastrophic 2 | . 2 . Database Lockouts . | . . . Manual 3 | . 3 . Terminals 10 | . 10 . Fabricators . | . . . Repair Stations 2 | . 2 . Recycling Units 8 | . 8 . Scanalyzers . | . . . Garrison Access . | . . . Terminal Hacks 5 | . 5 . Prototype ID Bank 2 | . 2 . Emergency Access Points 1 | . 1 . Disarm Traps 1 | . 1 . Hauler Manifests 1 | . 1 . Fabricator Hacks . | . . . Repair Station Hacks 2 | . 2 . Scan Component 1 | . 1 . Repair 1 | . 1 . Recycling Unit Hacks 3 | . 3 . Retrieve Components 3 | . 3 . Scanalyzer . | . . . Garrison Access Hacks . | . . . Unauthorized Hacks . | . . . Terminals . | . . . Fabricators . | . . . Repair Stations . | . . . Recycling Units . | . . . Scanalyzers . | . . . Garrison Access . | . . . Data Cores Recovered . | . . . Used . | . . . Hacking Detections 5 | . 5 . Full Trace Events 1 | . 1 . Feedback Events . | . . . Feedback Blocked . | . . . Robot Schematics Acquired . | . . . Robots Built . | . . . Authchips . | . . . Time . | . . . Total Robot Build Rating . | . . . Part Schematics Acquired . | . . . Parts Built . | . . . Authchips . | . . . Time . | . . . Total Part Build Rating . | . . . Part Studies Acquired . | . . . Parts Repaired 1 | . 1 . Time 26 | . 26 . Parts Recycled . | . . . Recycled Matter . | . . . Retrieved Matter . | . . . Retrieved Components 5 | . 5 . Parts Scanalyzed . | . . . Part Schematics Acquired . | . . . Parts Damaged . | . . . Bothacking | -11 -10 -10 ------------ Run | Yrd Mat Sub Used RIF Installer . | . . . Robots Hacked . | . . . Non-combat . | . . . Combat . | . . . Robot Hacks Applied . | . . . Relay Couplers Released . | . . . Fabnet Peak Effective % . | . . . Robots Rewired . | . . . Allies Hacked . | . . . Hacks Repelled . | . . . Allies | -11 -10 -10 -------- Run | Yrd Mat Sub Total Allies . | . . . Largest Group . | . . . Highest-Rated Group . | . . . Highest-Rated Ally . | . . . Total Orders . | . . . Ally Attacks . | . . . Total Damage . | . . . Kills . | . . . Allies Corrupted . | . . . Allies Melted . | . . . Intel | -11 -10 -10 ------- Run | Yrd Mat Sub Active Infowar (turns) 728 | . 728 . Sensors 728 | . 728 . Robot Analysis Total . | . . . Derelict Logs Recovered 2 | . . 2 Drone Launches . | . . . Drone Recoveries . | . . . Exploration | -11 -10 -10 ------------- Run | Yrd Mat Sub Turns Passed 1838 | 195 1041 602 Spaces Moved 771 | 53 523 195 Core 7 | 6 . 1 Treads 764 | 47 523 194 Legs . | . . . Wheels . | . . . Hover . | . . . Flight . | . . . Fastest Speed 50 | 50 160 160 Average Speed 173 | 147 160 214 Slowest Speed 450 | 160 240 450 Overloaded Moves . | . . . Propulsion Burnouts . | . . . Robots Hopped . | . . . Potential Cave-ins . | . . . Cave-ins Triggered . | . . . Exploration Rate (%) 35 | 5 85 17 Regions Visited 2 Branch Regions 1 Pre-discovered Areas 1 | . . 1 Known Exits Taken . | . . . Unknown Exits Taken 2 | 1 1 . Scrap Searched . | . . . Spaces Dug . | . . . Terrain Destroyed . | . . . Melee . | . . . Projectile . | . . . AOE . | . . . Terrain Rammed . | . . . Walls Destroyed . | . . . Machines Disabled . | . . . Actions | -11 -10 -10 --------- Run | Yrd Mat Sub Total 1107 | 167 638 302 Wait 202 | 107 45 50 Move 769 | 52 522 195 Hop . | . . . Pick Up 13 | 2 9 2 Fast Attach 14 | 6 7 1 Attach 10 | . 4 6 Detach 5 | . 5 . Swap 1 | . 1 . Drop 2 | . 2 . Fire 91 | . 43 48 Melee . | . . . Ram . | . . . Kick . | . . . Crush . | . . . Escape Stasis . | . . . Rewire . | . . . Trap . | . . . Miscellaneous . | . . . Route ------- -11/Scrapyard -10/Materials (discovered 4 exits: [*Mat x2] / [*Min] / [*Sub]) -10/Subcaves (discovered 1 exit: [*Mat]) History --------- Turn | Location | Event 9 | -11/Scrapyard | Discovered new exit (range 14) 196 | -11/Scrapyard | Entered Materials 327 | -10/Materials | Build established: Mutant 545 | -10/Materials | Discovered new exit (range 8) 611 | -10/Materials | Discovered new exit (range 14) 757 | -10/Materials | Repaired Lgt. Treads 1020 | -10/Materials | Discovered new exit (range 8) 1224 | -10/Materials | Discovered new exit (range 9) 1237 | -10/Materials | Entered Subcaves 1261 | -10/Subcaves | Shifting Twisted Machinery released Sub. Optics 1262 | -10/Subcaves | Shifting Twisted Machinery released Piercing Trap 1309 | -10/Subcaves | Learned location of Storage (-9) 1347 | -10/Subcaves | Discovered new exit (range 7) 1357 | -10/Subcaves | Core integrity fell below 50% 1471 | -10/Subcaves | Lost 4 parts (1p2n1w) 1552 | -10/Subcaves | Core integrity fell below 20% 1780 | -10/Subcaves | Learned 4 Materials zone layouts 1839 | -10/Subcaves | Destroyed by EO-7S5(R) with Subdweller Laser Last Messages --------------- repair. 01582_ Flight Unit fries itself beyond repair. 01582_ S-10 Pest destroyed. 01586_ Lgt. Ion Engine fries itself beyond repair. 01586_ Acquired Lgt. Assault Rifle. 01588_ Acquired 11 matter. 01589_ Flight Unit fries itself beyond repair. 01592_ Lgt. Assault Rifle fries itself beyond repair. 01595_ Subatomizers dissect the Sub. Optics. 01598_ Flight Unit fries itself beyond repair. 01607_ Subatomizers dissect the Sub. Optics. 01610_ Acquired 5 matter. 01622_ Subatomizers dissect the Sub. Optics. 01780_ Acquired derelict log, extracted data. Data stored: Materials zone layouts (x4). 01831_ Lgt. Treads destroyed. 01835_ PA-CGH(R) destroyed. Map ----- +----------------------------------------------------+ | | | | | | | | | | | | | ?????????????????????????????????????????????????? | | ?????????????????????????????????????????????????? | | ?????????????????????????????????????????????????? | | ?????????????????????????????????????????????????? | | ?????????????????????????????????????????????????? | | ?????????????????????????????????????????????????? | | ?????????????????????????????????????????????????? | | ?????????????????????????????????????????????????? | | ?????????????????????????????????????????????????? | | ?????????????????????????????????????????????????? | | ?????????????????????????????????????????????????? | | ???????????????? ???????????????????????????????? | | ???????????????## ??????????????????????????????? | | ???????????????# #?????????????????????????????? | | ?????????????### <##??###????####??????????????? | | ???????????### < ### ##### ##?????????????? | | ???????????# #?????????????? | | ??????????# #?????????????? | | ??????????# R %! ##????????????? | | ??????????# [@ #????????????? | | ?????????? ## ## #????????????? | | ?????????? ?# ##???????????????? | | ??????????? ??# ###??????????????? | | ??????????? ?## ######?????????? | | ??????????? ??# # #?????????? | | ???????????? ###????????? | | ???????????? #????????? | | ????????????? ## ### ###???????? | | ????????????? ## #?## #???????? | | ??????????????? ## ### #???????? | | ????????????????? #### ?###### ##???????? | | ????????????????? #???## ?????# #????????? | | ?????????????????? ?????########???## ##????###? | | ??????????????????????? ## ## # ##??# #????# ## | | ?????????????????????? #### ##????# | | ??????????????????????? ##???# | | ??????????????????????????????# # #?### # | | ????????????????????? ?????????## ##?# # | | ???????????????????# ?????### ##??# # | | ??????????????????## ????## & #???# | | ?????????????????## ????# & !##???#### | | ?????????????????# #???## ###???????# | | ?????????????????? ##??## #####?##### | | ????????????? #?# "#???# ## ### # # | +----------------------------------------------------+ Best States ------------- Heat Dissipation 25 Energy Generation 10 Energy Capacity 250 Matter Stores 300 Matter Capacity 300 Sight Range 16 Robot Scan Range 14 Terrain Scan Density 10 Evasion (%) 40 Recoil Reduction 2 Offensive Hacking 10 Item Schematics ----------------- None Robot Schematics ------------------ None Fabricated ------------ Nothing Repaired ---------- Lgt. Treads | 72% | -10/Materials Studied --------- None Alien Tech Used ----------------- None Achievements -------------- None Challenges ------------ None Game ------ Seed GravmagWaveEngine Manual? 0 Play Time 00:13:53 Cumulative 25.0 hours Start 2026.02.16 @ 14:35:26 End 2026.02.16 @ 14:47:01 Sessions 1 Manual Loads 0 Difficulty Rogue Special Mode None Game No. 66 Rogue 66 Adventurer 0 Explorer 0 Win Type - Total 0 Types 0/0/0/0/0/0/0/0/0/0 Lore% 16 Gallery% 25 Achievement% 19 Wizard Run 0 Options --------- Layout 1 ASCII 0 Keyboard 1 Movement Vi Keybinds 0 Fullscreen 1 Font 24/Smallcaps Map View 50x35 Zoom Use 0% Tactical HUD 1 Map Filters NONE Filters NONE Steam 1 RUN: 29ded5be-4a3f-4219-90ea-c66da054a4a9